[Event "21st Alekhine FIDE 2017"]
[Site "Voronezh"]
[Date "2017.06.14"]
[Round "3"]
[White "Moiseenko, Andrey"]
[Black "Khajrutdinov, Ildar"]
[Result "0-1"]
[ECO "D12"]
[WhiteElo "2010"]
[BlackElo "2087"]
[Annotator "NA RC"]
[PlyCount "110"]
[EventDate "2017.??.??"]
[EventType "swiss"]
[EventCountry "RUS"]
[SourceTitle "playchess.com"]
[Source "ChessBase"]
[SourceQuality "1"]
[TimeControl "40/5400+30:1800+30"]

{[%evp 8,110,47,38,27,35,32767,42,52,32767,32767,32767,35,35,43,37,32767,16,0,26,27,29,23,35,18,27,27,31,27,-81,77,49,63,45,25,0,0,0,80,20,85,79,104,81,88,43,60,67,67,31,62,58,63,57,33,18,20,36,70,58,76,72,75,71,85,81,207,183,139,128,138,32767,32767,32767,172,-195,-158,32767,32767,32767,32767,32767,32767,32767,32767,32767,32767,32767,32767,-520,-750,-530,-485,-1011,-310,-2172,-1624,-10804,-29972,-29972,-29977,-29978,-29959,-29981,-29977]} 1. d4 {[%emt 0:05:05]} d5 {[%emt 0:00:07]} 2. c4 {[%emt 0:00:05]} c6 {[%emt 0:00:07]} 3. Nf3 {[%emt 0:00:05]} Nf6 {[%emt 0:00:05]} 4. e3 {[%emt 0:00:03]} Bf5 {[%emt 0:02:25]} 5. Nc3 {[%emt 0:00:06]} e6 {[%emt 0:00:13]} 6. Nh4 {[%emt 0:00:05]} Bg4 {[%emt 0:01:43]} 7. Qb3 {[%emt 0:02:18]} Qc7 {[%emt 0:01:07] LiveBook: 89 Games} 8. h3 {[%emt 0:02:04] D12: Slav Defence: 3 Nf3 Nf6 4 e3 Bf5} (8. Bd2 Bh5 9. Rc1 dxc4 10. Bxc4 Be7 11. h3 Qb6 12. g3 Nbd7 13. O-O Nd5 14. Ng2 Bg6 15. f3 O-O {½-½ (48) Aronian,L (2781)-Vallejo Pons,F (2705) Linares 2010}) 8... Bh5 {[%emt 0:00:13]} 9. g4 {[%emt 0:00:06]} Bg6 {[%emt 0:00:14]} 10. Nxg6 {[%emt 0:01:16]} hxg6 {[%emt 0:00:13]} 11. g5 {[%emt 0:00:21]} Nfd7 {[%emt 0:07:04]} 12. f4 $146 {[%emt 0:23:04]} ({Predecessor:} 12. e4 dxe4 13. Nxe4 e5 14. Be3 Na6 15. Bg2 exd4 16. Bxd4 {1-0 (41) Vaganian,R (2640)-Gagunashvili,M (2567) Mallorca 2004}) 12... Nb6 {[%emt 0:17:56]} 13. c5 {[%emt 0:17:57]} Nc8 {[%emt 0:02:32]} 14. Qa4 {[%emt 0:01:12]} Nd7 {[%emt 0:20:53]} 15. b4 {[%emt 0:01:29]} Ne7 {[%emt 0:01:25]} 16. Bd3 {[%emt 0:06:54]} Nf5 {[%emt 0:08:46]} 17. Bd2 {[%emt 0:07:20]} Be7 {[%emt 0:02:24]} 18. O-O-O {[%emt 0:01:31]} (18. Bxf5 $11 gxf5 19. Kf2) 18... f6 $2 {[%emt 0:07:55]} (18... b6 $17 {and life is bright.}) 19. gxf6 {[%emt 0:06:10]} gxf6 {[%emt 0:01:16]} 20. Rdg1 {[%emt 0:00:05]} Kf7 {[%emt 0:00:20]} 21. Qc2 {[%emt 0:00:58]} (21. h4 $5) 21... Rh6 {[%emt 0:02:18]} 22. Nd1 {[%emt 0:02:26]} (22. h4 $5 {[%cal Rh4h5]} Rah8 23. Be1 $11) 22... b5 {[%emt 0:03:34]} (22... Rah8 $11) 23. Kb2 {[%emt 0:01:47]} ({White should try} 23. Nf2 $16) 23... Rah8 {[%emt 0:00:21]} 24. Nf2 {[%emt 0:00:06]} Qc8 {[%emt 0:04:19]} 25. a4 {[%emt 0:02:41]} a6 {[%emt 0:01:30]} 26. axb5 {[%emt 0:00:26]} axb5 {[%emt 0:00:02]} 27. Ra1 {[%emt 0:00:40]} Qb7 {[%emt 0:00:40]} 28. Ra3 {[%emt 0:01:36]} Ra8 {[%emt 0:04:16]} 29. Rxa8 {[%emt 0:00:28]} Qxa8 {[%emt 0:00:02]} 30. Ra1 {[%emt 0:00:01]} Qb7 {[%emt 0:00:37]} 31. Kc3 {[%emt 0:01:54]} Rh8 {[%emt 0:00:47]} 32. Qa2 {[%emt 0:00:29]} Rb8 {[%emt 0:00:42]} 33. Qa7 {[%emt 0:02:51]} Ke8 {[%emt 0:04:00]} 34. Ra6 {[%emt 0:02:20]} Qxa7 {[%emt 0:00:39]} 35. Rxa7 {[%emt 0:00:01]} Kd8 {[%emt 0:00:35]} 36. e4 {[%emt 0:01:46]} Nh4 {[%emt 0:00:44]} (36... dxe4 $16 {is a better defense.} 37. Bxe4 (37. Nxe4 Kc8 $16) 37... Rc8) 37. exd5 {[%emt 0:00:42]} exd5 {[%emt 0:00:17] [#]} 38. Ng4 {[%emt 0:01:07]} ({Better is} 38. f5 $1 $18 {[%cal Rf5g6]} g5 39. Ng4) 38... f5 {[%emt 0:03:51]} 39. Ne5 {[%emt 0:00:20]} Nxe5 {[%emt 0:00:09]} 40. fxe5 {[%emt 0:00:01]} Rc8 {[%emt 0:31:23]} 41. Rxe7 $2 {[%emt 0:35:05]} (41. Be2 $16 {keeps the pressure on.}) 41... Kxe7 {[%emt 0:00:03]} 42. Bg5+ {[%emt 0:00:05]} Ke6 {[%emt 0:00:26]} 43. Bxh4 {[%emt 0:00:01]} Rh8 {[%emt 0:00:14]} 44. Bg5 {[%emt 0:02:47]} Rxh3 {[%emt 0:00:10]} 45. Kd2 {[%emt 0:00:03]} Rh2+ {[%emt 0:00:59]} 46. Kc3 {[%emt 0:00:58]} Rg2 {[%emt 0:00:11]} 47. Bd8 {[%emt 0:02:42]} g5 {[%emt 0:01:17]} 48. Bf1 {[%emt 0:00:15]} Rg1 {[%emt 0:00:19]} 49. Be2 {[%emt 0:00:16]} g4 {[%emt 0:00:14]} 50. Kd2 {[%emt 0:00:26]} (50. Bg5 $142 g3 51. Be3) 50... f4 $2 {[%emt 0:00:40]} (50... g3 51. Bg5 g2) 51. Bg5 $2 {[%emt 0:01:28]} (51. Bh4) 51... f3 {[%emt 0:01:14]} 52. Bd3 {[%emt 0:00:02]} f2 {[%emt 0:00:59]} 53. Bh4 {[%emt 0:01:50]} f1=Q {[%emt 0:00:19]} 54. Bxf1 {[%emt 0:00:01]} Rxf1 {[%emt 0:00:10]} 55. Ke3 {[%emt 0:00:07]} Kf5 {[%emt 0:01:04]} 0-1

[Event "21st Alekhine FIDE 2017"]
[Site "Voronezh"]
[Date "2017.06.14"]
[Round "3"]
[White "Kholodov, Vladimir"]
[Black "Kozlov, Sergej A"]
[Result "0-1"]
[ECO "C04"]
[WhiteElo "1986"]
[BlackElo "2072"]
[Annotator "NA"]
[PlyCount "110"]
[EventDate "2017.??.??"]
[EventType "swiss"]
[EventCountry "RUS"]
[SourceTitle "playchess.com"]
[Source "ChessBase"]
[SourceQuality "1"]
[TimeControl "40/5400+30:1800+30"]

{[%evp 8,110,42,38,52,35,31,15,52,32767,32767,-18,10,32767,32767,32767,115,83,127,70,79,69,83,78,87,94,83,92,93,44,60,46,57,58,40,50,101,117,102,58,56,0,29,40,55,-88,-95,-123,-113,-120,-130,-137,-139,-159,-136,-150,-171,-185,-141,-169,-189,-192,-195,-229,-203,-337,-262,-253,-218,-269,-337,-288,-279,-404,-441,-450,-526,-486,-558,-500,-597,-492,32767,-538,-848,-728,-1744,-1490,-1192,-1144,-2083,-1088,-1822,-1074,-1312,-5129,-1708,-6091,-1756,-5724,-6152,-12845,-29979,-29978,-12846]} 1. e4 {[%emt 0:04:09]} e6 {[%emt 0:00:04]} 2. d4 {[%emt 0:00:47]} d5 {[%emt 0:00:05]} 3. Nd2 {[%emt 0:00:18]} Nc6 {[%emt 0:00:15]} 4. Ngf3 {[%emt 0:00:05]} Nf6 {[%emt 0:00:05]} 5. e5 {[%emt 0:00:07]} Nd7 $1 {[%emt 0:00:10]} 6. c3 {[%emt 0:00:06]} f6 {[%emt 0:00:18]} 7. exf6 {[%emt 0:00:30]} Qxf6 {[%emt 0:00:05]} 8. Bb5 {[%emt 0:00:05]} Bd6 {[%emt 0:02:13]} 9. O-O {[%emt 0:00:18]} O-O {[%emt 0:00:26] LiveBook: 18 Games} 10. Re1 {[%emt 0:01:01] C04: French Tarrasch: 3...Nc6} (10. Nb3 e5 11. c4 Nxd4 12. Nbxd4 exd4 13. cxd5 Ne5 14. Nxd4 Ng4 15. Nf3 Bc5 16. d6 cxd6 17. Qb3+ Kh8 18. Be3 {0-1 (47) Starostits,I (2415)-Lugovskoy,M (2431) Panevezys 2015}) 10... Ne7 {[%emt 0:15:05]} 11. Qe2 {[%emt 0:06:46]} Nb6 $146 {[%emt 0:02:05]} ({Predecessor:} 11... c6 12. Bd3 Nb6 13. Ne5 Bxe5 14. dxe5 Qf7 15. Nf3 h6 16. Nd4 Bd7 17. f4 c5 {1-0 (37) Erneste,I (2149)-Scheuermann,B (2229) Radebeul 2016}) 12. Ne5 {[%emt 0:02:07]} Ng6 {[%emt 0:04:14]} (12... Bxe5 $14 13. dxe5 Qf7) 13. Ndf3 {[%emt 0:02:36]} Bxe5 {[%emt 0:04:25]} 14. Nxe5 {[%emt 0:01:27]} Nxe5 {[%emt 0:07:03]} 15. dxe5 {[%emt 0:00:19]} Qh4 {[%emt 0:01:45]} 16. b3 {[%emt 0:02:20]} Bd7 {[%emt 0:02:36]} 17. Bd3 {[%emt 0:01:06]} Be8 {[%emt 0:01:57]} 18. Qe3 {[%emt 0:04:19]} Bg6 {[%emt 0:04:52]} 19. Ba3 {[%emt 0:12:07]} Rf7 {[%emt 0:02:10]} 20. Bxg6 {[%emt 0:01:45]} hxg6 {[%emt 0:00:06]} 21. Rad1 {[%emt 0:00:24]} Nd7 {[%emt 0:03:40]} 22. Rd4 {[%emt 0:00:32]} Qh5 {[%emt 0:00:42]} 23. Qg3 {[%emt 0:00:21]} Rf5 {[%emt 0:02:28]} 24. Rh4 {[%emt 0:00:15]} (24. Rg4 $5 {[%cal Rg4g6]} Rxe5 25. Rf1 $14) 24... Rxe5 {[%emt 0:01:58]} 25. Rf1 {[%emt 0:00:36]} Qf5 {[%emt 0:09:19]} 26. Rg4 {[%emt 0:00:45] [#]} (26. Rf4 $11 {keeps the balance.} Qc2 27. Rg4) 26... Nf6 $1 {[%emt 0:13:11]} 27. Rxg6 {[%emt 0:03:16]} Nh5 {[%emt 0:01:41]} 28. Qg4 {[%emt 0:00:39]} Kf7 {[%emt 0:02:27]} 29. Qxf5+ {[%emt 0:00:17]} exf5 {[%emt 0:01:12]} 30. Rg5 {[%emt 0:00:36]} Nf4 {[%emt 0:01:27]} 31. Bc5 {[%emt 0:01:54]} Kf6 {[%emt 0:03:04]} 32. Bd4 {[%emt 0:03:02]} Ne2+ {[%emt 0:00:44]} 33. Kh1 {[%emt 0:00:07]} Nxd4 {[%emt 0:00:06]} 34. cxd4 {[%emt 0:00:10]} Re2 {[%emt 0:00:16]} ({Not} 34... Kxg5 35. f4+ Kf6 36. dxe5+ Ke6 37. Rc1 $15) 35. f4 {[%emt 0:02:05]} Rxa2 {[%emt 0:00:08]} 36. Re1 $2 {[%emt 0:01:00]} (36. h4 {was the only chance.}) 36... Rd2 {[%emt 0:00:15]} 37. g4 {[%emt 0:00:24]} fxg4 {[%emt 0:01:06]} ({Inferior is} 37... Rxd4 38. Rxf5+ Kg6 39. Re6+ Kh7 40. Re7 $11) 38. Ree5 {[%emt 0:01:21]} g6 {[%emt 0:01:47]} ({Weaker is} 38... Rxd4 39. Rgf5+ Kg6 40. Kg2 $17) 39. Rxg4 {[%emt 0:01:03]} Rh8 {[%emt 0:00:47]} 40. h4 $2 {[%emt 0:00:24]} (40. Rxd5 Rhxh2+ 41. Kg1) 40... Rxd4 {[%emt 0:30:16]} 41. Kg2 {[%emt 0:30:45] [#]} Rxf4 $1 {[%emt 0:00:53]} 42. Rxf4+ {[%emt 0:00:16]} Kxe5 {[%emt 0:00:04]} 43. Rf7 {[%emt 0:00:07]} Rxh4 {[%emt 0:00:19]} 44. Rxc7 {[%emt 0:00:07]} Rb4 {[%emt 0:00:06]} 45. Rc3 {[%emt 0:00:31]} g5 {[%emt 0:00:39]} 46. Rg3 {[%emt 0:00:06]} g4 {[%emt 0:00:04]} 47. Kf2 {[%emt 0:00:35]} b5 {[%emt 0:00:33]} 48. Ke2 {[%emt 0:00:09]} Kf4 {[%emt 0:00:30]} 49. Rd3 {[%emt 0:00:06]} Re4+ {[%emt 0:00:33]} 50. Kf2 {[%emt 0:00:39]} d4 {[%emt 0:00:06]} 51. Rd2 {[%emt 0:00:18]} Ke5 {[%emt 0:00:23]} (51... g3+ $142 52. Kf1 Ke3 53. Rd1 d3 54. Kg1 Ke2 55. Rf1 d2 56. Kg2 d1=Q 57. Rxd1 Kxd1 58. Kf3 Rb4 59. Kg2 Ke2 60. Kh3 g2 61. Kxg2 Rxb3 62. Kh1 Kf2 63. Kh2 Re3 64. Kh1 Rh3#) 52. Ra2 {[%emt 0:00:28]} Re3 {[%emt 0:00:09]} 53. b4 {[%emt 0:00:08]} Kd5 $19 {[%emt 0:01:13]} (53... g3+ $142 54. Kg2 Kf4 55. Rxa7 Re2+ 56. Kf1 d3 57. Rf7+ Ke4 58. Re7+ Kf5 59. Rd7 g2+ 60. Kg1 d2 61. Kh2 Re1 62. Kxg2 d1=Q 63. Rxd1 Rxd1 64. Kf3 Rd3+ 65. Ke2 Ke4 66. Kf2 Kf4 67. Ke2 Rd8 68. Kf2 Rd2+ 69. Ke1 Ke3 70. Kf1 Kf3 71. Kg1 Rd1+ 72. Kh2 Rc1 73. Kh3 Rh1#) 54. Rxa7 {[%emt 0:00:32]} Kc4 {[%emt 0:00:06]} 55. Rd7 {[%emt 0:01:44]} Re4 {[%emt 0:00:14]} 0-1

[Event "21st Alekhine FIDE 2017"]
[Site "Voronezh"]
[Date "2017.06.14"]
[Round "3"]
[White "Gulko, Oleg"]
[Black "Palin, Denis"]
[Result "0-1"]
[ECO "D32"]
[WhiteElo "1956"]
[BlackElo "2158"]
[Annotator "ChessBase"]
[PlyCount "78"]
[EventDate "2017.??.??"]
[EventType "swiss"]
[EventCountry "RUS"]
[SourceTitle "playchess.com"]
[Source "ChessBase"]
[SourceQuality "1"]
[TimeControl "40/5400+30:1800+30"]

1. d4 {[%emt 0:04:44]} e6 {[%emt 0:03:11]} 2. c4 {[%emt 0:00:06]} d5 {[%emt 0:00:03]} 3. Nc3 {[%emt 0:00:06]} c5 {[%emt 0:00:02]} 4. Nf3 {[%emt 0:00:29]} Nc6 {[%emt 0:00:05]} 5. e3 {[%emt 0:01:04]} Nf6 {[%emt 0:00:05]} 6. Bd3 {[%emt 0:00:26]} Be7 {[%emt 0:02:43]} 7. O-O {[%emt 0:00:15]} dxc4 {[%emt 0:01:59]} 8. Bxc4 {[%emt 0:00:11]} cxd4 {[%emt 0:00:04]} 9. exd4 {[%emt 0:00:29]} O-O {[%emt 0:00:18]} 10. Re1 {[%emt 0:00:48]} a6 {[%emt 0:01:37]} 11. a3 {[%emt 0:02:12]} b5 {[%emt 0:02:04]} 12. Ba2 {[%emt 0:00:09]} Qb6 {[%emt 0:04:51]} 13. Be3 {[%emt 0:17:38]} Ng4 {[%emt 0:03:07]} 14. d5 {[%emt 0:01:33]} Nxe3 {[%emt 0:00:05]} 15. Rxe3 {[%emt 0:00:26]} Na5 {[%emt 0:09:59]} 16. dxe6 {[%emt 0:02:06]} Bxe6 {[%emt 0:02:52]} 17. Bxe6 {[%emt 0:00:29]} fxe6 {[%emt 0:00:01]} 18. Qd7 {[%emt 0:00:49]} Ra7 {[%emt 0:02:47]} 19. Qxe6+ {[%emt 0:01:59]} Qxe6 {[%emt 0:00:06]} 20. Rxe6 {[%emt 0:00:08]} Bf6 {[%emt 0:01:23]} 21. Ne5 {[%emt 0:04:37]} Nc4 {[%emt 0:09:08]} 22. Nxc4 {[%emt 0:01:23]} bxc4 {[%emt 0:00:02]} 23. Rc6 {[%emt 0:05:17]} Rb7 {[%emt 0:01:19]} 24. Nd1 {[%emt 0:03:17]} Bxb2 {[%emt 0:02:02]} 25. Rb1 {[%emt 0:01:19]} Rfb8 {[%emt 0:03:07]} 26. Rxb2 {[%emt 0:05:34]} Rxb2 {[%emt 0:01:27]} 27. Nxb2 {[%emt 0:00:06]} Rxb2 {[%emt 0:00:02]} 28. Kf1 {[%emt 0:01:31]} Ra2 {[%emt 0:01:09]} 29. Rxa6 {[%emt 0:03:39]} c3 {[%emt 0:00:01]} 30. Rc6 {[%emt 0:00:18]} Rxa3 {[%emt 0:01:58]} 31. Rc7 {[%emt 0:01:33]} h6 {[%emt 0:01:55]} 32. Ke2 {[%emt 0:03:04]} Ra2+ {[%emt 0:00:33]} 33. Ke3 {[%emt 0:00:10]} c2 {[%emt 0:07:39]} 34. h4 {[%emt 0:05:00]} Kh7 {[%emt 0:10:18]} 35. h5 {[%emt 0:02:57]} Kg8 {[%emt 0:00:08]} 36. g4 {[%emt 0:01:08]} Kf8 {[%emt 0:00:32]} 37. f4 {[%emt 0:03:08]} Ra3+ {[%emt 0:03:37]} 38. Ke4 {[%emt 0:12:08]} Ra2 {[%emt 0:02:17]} 39. Rc4 {[%emt 0:08:09]} Ra4 {[%emt 0:00:20]} 0-1

[Event "21st Alekhine FIDE 2017"]
[Site "Voronezh"]
[Date "2017.06.14"]
[Round "3"]
[White "Filippov, Vladimir"]
[Black "Novikov, Sergey D"]
[Result "1/2-1/2"]
[ECO "A05"]
[WhiteElo "1882"]
[BlackElo "2061"]
[Annotator "NA RC"]
[PlyCount "120"]
[EventDate "2017.??.??"]
[EventType "swiss"]
[EventCountry "RUS"]
[SourceTitle "playchess.com"]
[Source "ChessBase"]
[SourceQuality "1"]
[TimeControl "40/5400+30:1800+30"]

{[%evp 8,120,12,-6,32767,32767,32767,29,54,32767,32767,32767,-4,-15,-11,-9,-6,-7,0,-22,-15,-30,-33,-34,-27,-25,-33,-36,11,47,17,0,5,1,24,17,21,23,17,24,26,14,8,1,10,9,24,19,30,0,0,0,0,0,0,-11,7,32767,0,-4,0,0,0,-22,0,-19,-14,-14,0,0,0,0,0,32767,32767,32767,32767,0,0,0,0,0,0,0,0,0,0,0,0,0,0,0,0,0,0,0,0,0,0,0,0,0,24,5,32767,24,24,5,15,24,5,22,15,0,24]} 1. Nf3 Nf6 2. b3 g6 3. Bb2 Bg7 4. c4 O-O 5. g3 {LiveBook: 754 Games} c5 6. Bg2 Nc6 7. O-O b6 8. d3 Bb7 9. Nbd2 {A30: Symmetrical English: Double Fianchetto and Hedgehog} e6 (9... d5 10. cxd5 Nxd5 11. Bxg7 Kxg7 12. a3 Rb8 13. e3 e6 14. Qc2 Qe7 15. Rac1 Rfd8 16. Rfd1 f6 17. Qb2 e5 {1-0 (52) Grigoriants,S (2570)-Kovalenko,I (2653) Wroclaw 2014}) 10. Ne5 d5 11. Nxc6 $146 ({Predecessor:} 11. Ndf3 Qd6 12. Nxc6 Bxc6 13. Ne5 Bb7 14. Rb1 Rad8 15. a3 Ba8 16. cxd5 exd5 17. b4 Rfe8 {0-1 (34) Kosyachenko,O-Zingaylo,A Lvov 2007}) 11... Bxc6 12. Nf3 Qe7 13. Qc2 Rfd8 14. Rfe1 (14. Ne5 $5 {[%cal Re5c6]} Bb7 15. e3 $11) 14... d4 15. b4 Ne8 16. b5 Bb7 17. a4 Qc7 18. a5 Rab8 19. axb6 axb6 20. Ra7 Nd6 21. Nd2 Ra8 22. Rea1 Rxa7 23. Rxa7 Rb8 24. Bxb7 Rxb7 25. Ra8+ Rb8 26. Qa4 Rxa8 (26... Qd8 $5 {[%cal Rb8a8]} 27. Ra7 e5 $11) 27. Qxa8+ Qc8 28. Qa1 e5 29. Qa7 Qb7 30. Qxb7 Nxb7 31. Bc1 Kf8 32. Nb3 Ke7 33. Kg2 Ke6 34. f3 f5 35. Bg5 h6 36. Bc1 Nd6 37. h3 g5 38. g4 Kf6 39. Ba3 Nb7 40. gxf5 Kxf5 41. Nd2 Nd6 42. Ne4 Nxe4 43. fxe4+ Kg6 44. Bc1 Bf6 45. Bd2 Bd8 46. Kf3 h5 47. Be1 Be7 48. Bg3 Kf6 49. Bf2 Kg6 50. Be1 Bd8 51. Bd2 Be7 52. Be1 Bd8 53. Bf2 Be7 54. e3 dxe3 55. Bxe3 Bd8 56. Bd2 Be7 57. Be1 Bd8 58. Bg3 Kf6 59. Bh2 Be7 60. Bg3 Ke6 $11 1/2-1/2

[Event "21st Alekhine FIDE 2017"]
[Site "Voronezh"]
[Date "2017.06.15"]
[Round "4"]
[White "Khajrutdinov, Ildar"]
[Black "Kondaurov, Yury"]
[Result "1/2-1/2"]
[ECO "A56"]
[WhiteElo "2087"]
[BlackElo "2046"]
[Annotator "NA RC"]
[PlyCount "105"]
[EventDate "2017.??.??"]
[EventType "swiss"]
[EventCountry "RUS"]
[SourceTitle "playchess.com"]
[Source "ChessBase"]
[SourceQuality "1"]
[TimeControl "40/5400+30:1800+30"]

{[%evp 8,105,20,16,54,27,33,5,10,29,38,0,2,6,6,0,7,-25,0,-25,7,-16,-15,-35,-2,-25,16,8,0,0,0,0,0,0,51,43,35,12,10,6,21,14,24,18,84,68,84,93,94,18,44,35,75,72,84,76,81,81,83,81,75,73,87,88,87,0,75,72,72,59,94,84,79,96,90,60,70,47,72,56,56,31,23,29,44,62,64,58,58,44,44,44,64,58,58,0,0,14,0,0]} 1. d4 {[%emt 0:00:00]} Nf6 {[%emt 0:00:03]} 2. c4 {[%emt 0:00:00]} c5 {[%emt 0:00:06]} 3. Nf3 {[%emt 0:02:10]} cxd4 {[%emt 0:00:20]} 4. Nxd4 {[%emt 0:00:04]} e5 {[%emt 0:00:02]} 5. Nb5 {[%emt 0:04:15]} d5 {[%emt 0:00:16]} 6. cxd5 $1 {[%emt 0:08:14]} Bc5 {[%emt 0:00:11]} 7. e3 {[%emt 0:03:40]} O-O {[%emt 0:00:51]} 8. N5c3 {[%emt 0:07:23]} e4 {[%emt 0:00:55]} 9. Be2 {[%emt 0:04:14] LiveBook: 125 Games} Qe7 {[%emt 0:00:58]} 10. Nd2 {[%emt 0:06:25]} Rd8 {[%emt 0:01:19]} 11. Qb3 {[%emt 0:15:02] A31: Symmetrical English: 2 Nf3 Nf6 3 d4} (11. Nb3 Bb4 12. Bd2 Nxd5 13. Qc2 Nxc3 14. Bxc3 Nc6 15. O-O Bf5 16. Rfd1 Rac8 17. Rxd8+ Rxd8 18. Rc1 h6 {1-0 (45) Lafuente,P (2524)-Herraiz Hidalgo,H (2520) San Sebastian 2009}) 11... b6 $146 {[%emt 0:11:23]} ({Predecessor:} 11... Nbd7 12. O-O Nb6 13. Rd1 Bf5 14. Nf1 h5 15. Ng3 Bg6 16. f4 exf3 17. Bxf3 h4 18. Nf1 Qe5 {0-1 (27) Kaniansky,M (2209)-Packa,L (2221) Slovakia 2012}) 12. Nc4 {[%emt 0:10:52]} (12. Qa4 $14) 12... Nbd7 {[%emt 0:15:35]} 13. Bd2 {[%emt 0:10:04]} Bb7 {[%emt 0:03:02]} 14. d6 {[%emt 0:04:24]} Bxd6 {[%emt 0:04:00]} 15. Nxd6 {[%emt 0:00:26]} Qxd6 {[%emt 0:01:43]} 16. Nb5 {[%emt 0:02:14]} Qxd2+ {[%emt 0:02:29]} 17. Kxd2 {[%emt 0:00:05]} Nc5+ {[%emt 0:00:07]} 18. Nd4 {[%emt 0:01:16]} (18. Kc3 $5 {[%cal Rb3a3]} Nd5+ 19. Kc2 Nxb3 20. Kxb3 $11) 18... Nxb3+ {[%emt 0:00:16]} 19. axb3 {[%emt 0:00:07]} a5 {[%emt 0:00:47]} 20. Rhc1 {[%emt 0:00:27]} Rac8 {[%emt 0:00:10]} 21. Rxc8 {[%emt 0:01:38]} Rxc8 {[%emt 0:00:05]} 22. Rc1 {[%emt 0:00:34]} (22. b4 $5) 22... Rxc1 {[%emt 0:00:11]} 23. Kxc1 {[%emt 0:00:01]} g6 {[%emt 0:01:24]} 24. Kc2 {[%emt 0:02:10]} Kf8 {[%emt 0:00:40]} 25. b4 {[%emt 0:02:18]} a4 {[%emt 0:01:20]} (25... axb4 $11 {remains equal.} 26. Kb3 Nd5) 26. Kc3 {[%emt 0:06:03]} Ke7 {[%emt 0:03:20]} 27. Kc4 {[%emt 0:02:19]} Ba6+ {[%emt 0:07:09]} 28. b5 {[%emt 0:00:18]} Bb7 {[%emt 0:00:02]} 29. Kb4 {[%emt 0:01:23]} Kd6 {[%emt 0:01:10]} 30. Kxa4 {[%emt 0:00:25]} Kc5 {[%emt 0:03:12]} 31. Nb3+ {[%emt 0:00:33]} Kd6 {[%emt 0:00:14]} 32. Kb4 {[%emt 0:00:24]} Nd5+ {[%emt 0:01:42]} 33. Kc4 {[%emt 0:00:35]} Ke5 {[%emt 0:00:05]} 34. Nd4 {[%emt 0:02:13]} Ne7 {[%emt 0:08:35]} 35. Kc3 {[%emt 0:01:29]} Nd5+ {[%emt 0:00:39]} 36. Kc4 {[%emt 0:00:14]} (36. Kb3 $16) 36... Ne7 {[%emt 0:00:02]} 37. g3 {[%emt 0:00:16]} f5 {[%emt 0:00:53]} 38. Kc3 {[%emt 0:00:48]} g5 {[%emt 0:00:46]} 39. Bc4 {[%emt 0:00:50]} Bd5 {[%emt 0:06:39]} 40. b3 {[%emt 0:00:00]} f4 {[%emt 0:03:50]} 41. Kd2 {[%emt 0:31:48]} h5 {[%emt 0:30:31]} 42. Ke2 {[%emt 0:02:21]} f3+ {[%emt 0:02:14]} 43. Kd2 {[%emt 0:00:14]} h4 {[%emt 0:01:25]} 44. Bf1 {[%emt 0:00:50]} hxg3 {[%emt 0:00:14]} 45. hxg3 {[%emt 0:00:12]} Nf5 {[%emt 0:05:00]} 46. Nxf5 $1 {[%emt 0:00:48]} Kxf5 {[%emt 0:00:01]} 47. Kc3 {[%emt 0:00:26]} Ke5 {[%emt 0:00:03]} 48. Bc4 {[%emt 0:00:36]} Bb7 {[%emt 0:00:27]} 49. Bf7 {[%emt 0:00:23]} Bd5 {[%emt 0:01:15]} 50. Be8 {[%emt 0:00:14]} Be6 {[%emt 0:00:09]} 51. b4 {[%emt 0:00:35]} (51. Bc6 $14) 51... Bh3 {[%emt 0:01:06]} 52. Bc6 {[%emt 0:00:43]} Be6 {[%emt 0:00:14]} 53. Be8 $11 1/2-1/2

[Event "21st Alekhine FIDE 2017"]
[Site "Voronezh"]
[Date "2017.06.15"]
[Round "4"]
[White "Novikov, Sergey D"]
[Black "Natarov, Ilya"]
[Result "1-0"]
[ECO "D45"]
[WhiteElo "2061"]
[BlackElo "1881"]
[Annotator "NA"]
[PlyCount "63"]
[EventDate "2017.??.??"]
[EventType "swiss"]
[EventCountry "RUS"]
[SourceTitle "playchess.com"]
[Source "ChessBase"]
[SourceQuality "1"]
[TimeControl "40/5400+30:1800+30"]

{[%evp 9,63,14,9,18,23,15,12,0,8,-2,43,35,65,16,62,53,55,64,77,57,147,125,105,102,188,111,100,100,100,99,194,199,285,189,295,303,310,282,447,451,519,554,639,386,1248,1345,1195,1358,1370,1656,1291,1535,2193,6141,29982,1550]} 1. d4 d5 2. Nf3 Nf6 3. c4 c6 4. Nc3 e6 5. e3 Nbd7 6. Qc2 Bd6 7. Bd3 dxc4 8. Bxc4 b5 9. Be2 {D46: Semi-Slav: 5 e3 Nbd7 6 Bd3, Black avoids the Meran} Bb7 (9... O-O 10. O-O a6 11. Rd1 Qc7 12. e4 e5 13. h3 Re8 14. a3 exd4 15. Nxd4 Bh2+ 16. Kh1 Be5 17. Bf3 c5 18. Nf5 Nb6 19. Bg5 Bxf5 20. exf5 {½-½ (40) Navara,D (2751)-So,W (2778) Prague 2015}) 10. e4 e5 {LiveBook: 4 Games} 11. O-O h6 $146 ({Predecessor:} 11... O-O 12. dxe5 Nxe5 13. Nxe5 Bxe5 14. Be3 Qe7 15. Bf3 Rfe8 16. Rfe1 a6 17. Rad1 Rad8 18. Rxd8 Rxd8 19. h3 h6 20. Ne2 Qb4 21. Rb1 c5 22. Bxc5 Bxe4 23. Bxb4 Bxc2 24. Rc1 Be4 25. Bxe4 Nxe4 26. b3 {½-½ (26) Milos,G (2510)-Nogueiras Santiago,J (2560) Havana 1988}) 12. Rd1 Qc7 13. dxe5 Nxe5 14. Nd4 Ned7 (14... O-O $14) 15. g3 (15. Nf5 $18 Bxh2+ 16. Kh1) 15... O-O {[#]} 16. Bxb5 $1 Nc5 (16... cxb5 $16 17. Ndxb5 {[#]} Bxe4 $1 {[%mdl 512]} 18. Nxc7 Bxc2 19. Rxd6 Rab8) 17. Bxc6 (17. Bc4 $18) 17... Bxc6 {[#]} 18. Ndb5 $1 Qe7 19. Nxd6 Rad8 (19... Ncxe4 $16 20. Ncxe4 Bxe4) 20. Nf5 Qb7 21. Nd5 Nfxe4 (21... Bxd5 $142 22. exd5 Nce4) 22. Nde7+ Kh8 23. Be3 Rxd1+ 24. Rxd1 Ba4 25. b3 Nxb3 26. axb3 Bxb3 $2 (26... Qxb3 27. Qxb3 Bxb3) 27. Qb2 f6 28. Ng6+ Kg8 29. Nxf8 Kxf8 30. Rb1 Qd5 31. Qa3+ Kf7 32. Qxb3 $18 (32. Qe7+ $142 Kg6 33. g4 Qf7 34. Qxe4 Qc4 35. Nd4+ Kf7 36. Rxb3 Qxb3 37. Nxb3) 1-0